lending/lending_fUSD_20251018
["ID","MTS","AMOUNT","RATE_DAILY","PERIOD"]
[391785066,1760809841205,-500.0,0.00031973,5]
[391785067,1760809841214,-1000.0,0.00031973,5]
[391785068,1760809841223,-161.23945813,0.00031973,5]
[391785069,1760809841233,-1030.89090806,0.00031973,5]
[391785070,1760809841243,-1000.0,0.00031973,5]
[391785071,1760809841253,-1000.0,0.00031981,2]
[391785072,1760809841262,-158.9,0.00031991,2]
[391785073,1760809841273,-168.0,0.00031999,2]
[391785074,1760809841283,-8342.22595871,0.00032,3]
[391785075,1760809841292,-1000.0,0.00032,2]
[391785076,1760809841301,-586.14,0.00032003,2]
[391785077,1760809841311,-683.53,0.00032003,2]
[391785078,1760809841320,-500.0,0.00032003,2]
[391785079,1760809841330,-500.0,0.00032003,2]
[391785080,1760809841339,-158.88,0.00032033,2]
[391785081,1760809841349,-500.0,0.00032054,30]
[391785082,1760809841359,-334.5472959,0.00032093,2]
[391785083,1760809841369,-1000.0,0.00032095,2]
[391785084,1760809841378,-166.66,0.00032108,2]
[391785085,1760809841387,-200.0,0.0003214,2]
[391785086,1760809841396,-1000.0,0.0003214,2]
[391785087,1760809841405,-246.90036265,0.00032181,2]
[391785088,1760809841415,-183.43,0.00032188,2]
[391785089,1760809841424,-1000.0,0.0003219,2]
[391785090,1760809841433,-12058.5574,0.0003219,2]
[391785091,1760809841443,-1000.0,0.00032196,2]
[391785092,1760809841452,-500.0,0.00032197,2]
[391785093,1760809841461,-6916.11,0.00032197,2]
[391785094,1760809841470,-500.0,0.00032197,2]
[391785095,1760809841479,-558.47975299,0.00032197,2]
[391785096,1760809841489,-500.0,0.00032197,2]
[391785097,1760809841498,-500.0,0.00032197,2]
[391785098,1760809841507,-373.58131258,0.00032197,2]
[391785099,1760809841516,-500.0,0.00032197,2]
[391785100,1760809841525,-500.0,0.00032197,2]
[391785101,1760809841535,-1181.21,0.00032197,2]
[391785102,1760809841548,-500.0,0.00032197,2]
[391785103,1760809841557,-596.81310951,0.00032198,2]
[391785104,1760809841567,-500.0,0.00032198,2]
[391785105,1760809841577,-500.0,0.00032198,2]
[391785106,1760809841589,-500.0,0.00032198,2]
[391785107,1760809841598,-500.0,0.00032198,2]
[391785108,1760809841607,-500.0,0.00032198,2]
[391785109,1760809841617,-500.0,0.00032198,2]
[391785110,1760809841626,-500.0,0.00032198,2]
[391785111,1760809841636,-500.0,0.00032198,2]
[391785112,1760809841645,-500.0,0.00032198,2]
[391785113,1760809841654,-500.0,0.00032198,2]
[391785114,1760809841663,-500.0,0.00032198,2]
[391785115,1760809841673,-500.0,0.00032198,2]
[391785116,1760809841683,-455.76432331,0.00032198,2]
[391785117,1760809841692,-500.0,0.00032198,2]
[391785118,1760809841701,-500.0,0.00032198,2]
[391785119,1760809841710,-500.0,0.00032198,2]
[391785120,1760809841719,-500.0,0.00032198,2]
[391785121,1760809841730,-18378.9647,0.00032198,2]
[391785122,1760809841739,-500.0,0.00032199,2]
[391785123,1760809841749,-500.0,0.00032199,2]
[391785124,1760809841758,-500.0,0.00032199,2]
[391785125,1760809841767,-500.0,0.00032199,2]
[391785126,1760809841776,-500.0,0.00032199,2]
[391785127,1760809841786,-500.0,0.00032199,2]
[391785128,1760809841795,-500.0,0.00032199,2]
[391785129,1760809841804,-500.0,0.00032199,2]
[391785130,1760809841816,-500.0,0.00032199,2]
[391785131,1760809841827,-500.0,0.00032199,2]
[391785132,1760809841838,-3752.01,0.00032199,2]
[391785133,1760809841851,-900.0,0.000322,11]
[391785134,1760809841862,-1543.51993628,0.000322,4]
[391785135,1760809841874,-162.97766138,0.000322,15]
[391785136,1760809841884,-5000.0,0.000322,2]
[391785137,1760809841895,-176.76056241,0.000322,5]
[391785138,1760809841904,-183.43,0.00032219,2]
[391785139,1760809841917,-246.90036264,0.00032222,2]
[391785140,1760809841929,-6369.81083029,0.00032229,2]
[391785141,1760809841941,-500.0,0.00032231,2]
[391785142,1760809841954,-162.97766137,0.00032244,15]
[391785143,1760809841967,-500.0,0.00032245,2]
[391785144,1760809841978,-500.0,0.00032245,2]
[391785145,1760809841989,-500.0,0.00032245,2]
[391785146,1760809842000,-1411.09,0.00032245,2]
[391785147,1760809842013,-1663.6,0.00032245,2]
[391785148,1760809842024,-627.1,0.00032245,2]
[391785149,1760809842035,-500.0,0.00032245,2]
[391785150,1760809842047,-276.99733715,0.00032245,2]
[391785151,1760809842059,-322.02,0.00032245,2]
[391785152,1760809842070,-500.0,0.00032245,2]
[391785153,1760809842081,-500.0,0.00032245,2]
[391785154,1760809842092,-500.0,0.00032245,2]
[391785155,1760809842102,-500.0,0.00032245,2]
[391785156,1760809842115,-500.0,0.00032245,2]
[391785157,1760809842127,-1576.0,0.00032247,5]
[391785158,1760809842138,-6369.81083029,0.00032259,2]
[391785159,1760809842148,-246.90036264,0.00032262,2]
[391785160,1760809842158,-1000.0,0.00032268,2]
[391785161,1760809842170,-183.43,0.00032271,2]
[391785162,1760809842181,-1000.0,0.00032272,2]
[391785163,1760809842192,-500.0,0.00032273,5]
[391785164,1760809842203,-194.9538651,0.00032273,5]
[391785165,1760809842215,-500.0,0.00032273,5]
[391785166,1760809842226,-586.14,0.00032276,2]
[391785167,1760809842238,-683.53,0.00032276,2]
[391785168,1760809842250,-500.0,0.00032276,2]
[391785169,1760809842260,-500.0,0.00032276,2]
[391785170,1760809842272,-158.9,0.00032278,2]
[391785171,1760809842285,-24144.9541167,0.0003228,3]
[391785172,1760809842295,-183.43,0.0003228,2]
[391785173,1760809842307,-1160.14,0.00032281,120]
[391785174,1760809842320,-3449.27915953,0.00032286,3]
[391785175,1760809842333,-6898.55831906,0.00032287,3]
[391785176,1760809842344,-6369.81083029,0.00032288,2]
[391785177,1760809842355,-162.97766137,0.00032288,15]
[391785178,1760809842369,-13797.1166381,0.00032289,3]
[391785179,1760809842379,-500.0,0.00032289,2]
[391785180,1760809842391,-1000.0,0.00032289,2]
[391785181,1760809842402,-500.0,0.00032289,2]
[391785182,1760809842415,-500.0,0.00032289,2]
[391785183,1760809842426,-6148.1780099,0.0003229,2]
[391785184,1760809842437,-8024.0367315,0.0003229,2]
[391785185,1760809842448,-917.5758116,0.0003229,2]
[391785186,1760809842460,-2939.9541345,0.0003229,2]
[391785187,1760809842470,-8970.6668938,0.0003229,2]
[391785188,1760809842482,-163.9715362,0.0003229,2]
[391785189,1760809842495,-110376.933105,0.0003229,3]
[391785190,1760809842506,-500.0,0.00032296,2]
[391785191,1760809842519,-500.0,0.00032296,2]
[391785192,1760809842533,-500.0,0.00032296,2]
[391785193,1760809842549,-305.49462475,0.00032296,2]
[391785194,1760809842561,-500.0,0.00032297,2]
[391785195,1760809842573,-500.0,0.00032297,2]
[391785196,1760809842583,-500.0,0.00032297,2]
[391785197,1760809842594,-500.0,0.00032297,2]
[391785198,1760809842606,-500.0,0.00032297,2]
[391785199,1760809842616,-500.0,0.00032297,2]
[391785200,1760809842630,-386.38528649,0.00032297,2]
[391785201,1760809842639,-500.0,0.00032298,2]
[391785202,1760809842649,-627.1,0.00032298,2]
[391785203,1760809842659,-500.0,0.00032298,2]
[391785204,1760809842670,-500.0,0.00032298,2]
[391785205,1760809842681,-500.0,0.00032298,2]
[391785206,1760809842693,-497.32130618,0.00032299,2]
[391785207,1760809842707,-500.0,0.00032299,2]
[391785208,1760809842719,-500.0,0.00032299,2]
[391785209,1760809842730,-500.0,0.00032299,2]
[391785210,1760809842740,-500.0,0.00032299,2]
[391785211,1760809842750,-500.0,0.00032299,2]
[391785212,1760809842759,-500.0,0.00032299,2]
[391785213,1760809842771,-500.0,0.00032299,2]
[391785214,1760809842782,-500.0,0.00032299,2]
[391785215,1760809842793,-500.0,0.00032299,2]
[391785216,1760809842805,-351.10128926,0.00032299,2]
[391785217,1760809842815,-627.1,0.00032299,2]
[391785218,1760809842827,-500.0,0.00032299,2]
[391785219,1760809842838,-500.0,0.00032299,2]
[391785220,1760809842850,-508.79376071,0.00032299,2]
[391785221,1760809842860,-151.0,0.00032299,4]
[391785222,1760809842871,-156.58700002,0.00032299,4]
[391785223,1760809842882,-500.0,0.00032299,2]
[391785224,1760809842894,-500.0,0.00032299,2]
[391785225,1760809842904,-500.0,0.00032299,2]
[391785226,1760809842916,-500.0,0.00032299,2]
[391785227,1760809842927,-500.0,0.00032299,2]
[391785228,1760809842939,-500.0,0.00032299,2]
[391785229,1760809842954,-500.0,0.00032299,2]
[391785230,1760809842965,-568.92496119,0.00032299,2]
[391785231,1760809842976,-500.0,0.00032299,2]
[391785232,1760809842987,-500.0,0.00032299,2]
[391785233,1760809842999,-500.0,0.00032299,2]
[391785234,1760809843010,-500.0,0.00032299,2]
[391785235,1760809843020,-1181.21,0.00032299,2]
[391785236,1760809843031,-1181.21,0.00032299,2]
[391785237,1760809843043,-48782.27920384,0.000323,4]
[391785238,1760809843058,-42195.25859344,0.000323,4]
[391785239,1760809843071,-1255.05608863,0.000323,4]
[391785240,1760809843083,-965.19236379,0.000323,4]
[391785241,1760809843096,-1250.9,0.000323,4]
[391785242,1760809843111,-313.02310857,0.000323,4]
[391785243,1760809843125,-172327.30871707,0.000323,4]
[391785244,1760809843135,-151.0,0.000323,30]
[391785245,1760809843146,-250000.0,0.000323,4]
[391785246,1760809843156,-151.0,0.000323,30]
[391785247,1760809843167,-151.0,0.000323,30]
[391785248,1760809843178,-151.0,0.000323,30]
[391785249,1760809843188,-151.0,0.000323,30]
[391785250,1760809843199,-151.0,0.000323,30]
[391785251,1760809843209,-151.0,0.000323,30]
[391785252,1760809843220,-151.169101,0.000323,30]
[391785253,1760809843231,-151.0,0.000323,30]
[391785254,1760809843242,-151.0,0.000323,30]
[391785255,1760809843253,-151.0,0.000323,30]
[391785256,1760809843264,-151.0,0.000323,30]
[391785257,1760809843275,-151.0,0.000323,30]
[391785258,1760809843286,-151.0,0.000323,30]
[391785259,1760809843297,-151.0,0.000323,30]
[391785260,1760809843307,-151.0,0.000323,30]
[391785261,1760809843317,-1400.0,0.000323,11]
[391785262,1760809843328,-300.0,0.000323,60]
[391785264,1760809843338,-300.0,0.000323,60]
[391785266,1760809843348,-300.0,0.000323,60]
[391785267,1760809843358,-300.0,0.000323,60]
[391785268,1760809843368,-300.0,0.000323,60]
[391785269,1760809843379,-300.0,0.000323,60]
[391785270,1760809843390,-207.1848,0.000323,60]
[391785271,1760809843399,-610.25447,0.000323,2]
[391785272,1760809843411,-188.257185,0.000323,30]
[391785273,1760809843421,-188.257185,0.000323,30]
[391785274,1760809843431,-188.257185,0.000323,30]
[391785275,1760809843443,-188.257185,0.000323,30]
[391785276,1760809843455,-151.0,0.000323,30]
[391785277,1760809843467,-151.0,0.000323,30]
[391785278,1760809843477,-151.0,0.000323,30]
[391785279,1760809843487,-151.0,0.000323,30]
[391785280,1760809843497,-151.0,0.000323,30]
[391785281,1760809843507,-151.0,0.000323,30]
[391785282,1760809843517,-151.0,0.000323,30]
[391785283,1760809843527,-151.0,0.000323,30]
[391785284,1760809843538,-151.0,0.000323,30]
[391785285,1760809843551,-275.117524,0.000323,30]
[391785286,1760809843561,-151.0,0.000323,30]
[391785287,1760809843574,-151.0,0.000323,30]
[391785288,1760809843587,-151.0,0.000323,30]
[391785289,1760809843597,-151.0,0.000323,30]
[391785290,1760809843608,-699.389986,0.000323,30]
[391785291,1760809843621,-699.389986,0.000323,30]
[391785292,1760809843634,-151.0,0.000323,30]
[391785293,1760809843645,-151.0,0.000323,30]
[391785294,1760809843656,-248.89336366,0.000323,30]
[391785295,1760809843667,-699.389986,0.000323,30]
[391785296,1760809843681,-699.389986,0.000323,30]
[391785297,1760809843692,-699.389986,0.000323,30]
[391785298,1760809843703,-699.389986,0.000323,30]
[391785299,1760809843713,-699.389986,0.000323,30]
[391785300,1760809843723,-699.389986,0.000323,30]
[391785301,1760809843735,-151.0,0.000323,30]
[391785302,1760809843745,-151.0,0.000323,30]
[391785303,1760809843755,-151.379112,0.000323,30]
[391785304,1760809843765,-151.0,0.000323,30]
[391785305,1760809843775,-151.0,0.000323,30]
[391785306,1760809843786,-151.0,0.000323,30]
[391785307,1760809843796,-151.0,0.000323,30]
[391785308,1760809843806,-151.0,0.000323,30]
[391785309,1760809843816,-151.0,0.000323,30]
[391785310,1760809843826,-151.0,0.000323,30]
[391785311,1760809843837,-151.0,0.000323,30]
[391785312,1760809843848,-151.0,0.000323,30]
[391785313,1760809843858,-151.0,0.000323,30]
[391785314,1760809843868,-151.0,0.000323,30]
[391785315,1760809843878,-151.0,0.000323,30]
[391785316,1760809843888,-151.0,0.000323,30]
[391785317,1760809843898,-151.0,0.000323,30]
[391785318,1760809844097,-151.0,0.000323,30]
[391785319,1760809844107,-151.0,0.000323,30]
[391785320,1760809844117,-151.0,0.000323,30]
[391785321,1760809844128,-151.0,0.000323,30]
[391785322,1760809844137,-151.0,0.000323,30]
[391785323,1760809844146,-151.0,0.000323,30]
[391785324,1760809844155,-151.0,0.000323,30]
[391785325,1760809844165,-151.0,0.000323,30]
[391785326,1760809844175,-151.0,0.000323,30]
[391785327,1760809844184,-151.0,0.000323,30]
[391785328,1760809844194,-299.515916,0.000323,30]
[391785329,1760809844204,-246.90036264,0.00032303,2]
[391785330,1760809844214,-1000.0,0.00032316,2]
[391785331,1760809844223,-6369.81083029,0.00032318,2]
[391785332,1760809844232,-162.97766137,0.00032333,15]
[391785333,1760809844242,-1000.0,0.00032335,2]
[391785334,1760809844252,-168.0,0.00032336,2]
[391785335,1760809844261,-246.90036264,0.00032343,2]
[391785336,1760809844271,-6369.81083029,0.00032347,2]
[391785337,1760809844280,-600.0,0.00032368,2]
[391785338,1760809844290,-6369.81083029,0.00032377,2]
[391785339,1760809844299,-162.97766137,0.00032377,15]
[391785340,1760809844309,-1425.0,0.0003238,2]
[391785341,1760809844319,-246.90036264,0.00032384,2]
[391785342,1760809844329,-500.0,0.00032398,2]
[391785343,1760809844339,-150.0,0.00032399,2]
[391785344,1760809844348,-591.87086658,0.00032399,2]
[391785345,1760809844358,-150.0,0.00032399,2]
[391785346,1760809844368,-14913.95822595,0.00032399,2]
[391785347,1760809844378,-150.0,0.00032399,2]
[391785348,1760809844388,-150.0,0.00032399,2]
[391785349,1760809844398,-150.0,0.00032399,2]
[391785350,1760809844407,-150.77597293,0.00032399,2]
[391785351,1760809844416,-150.0,0.00032399,2]
[391785352,1760809844425,-202.01765236,0.00032399,2]
[391785353,1760809844435,-281.9154228,0.00032399,2]
[391785354,1760809844445,-150.0,0.00032399,2]
[391785355,1760809844454,-257.58958107,0.00032399,2]
[391785356,1760809844463,-150.0,0.00032399,2]
[391785357,1760809844473,-150.0,0.00032399,2]
[391785358,1760809844482,-500.0,0.00032399,2]
[391785359,1760809844491,-200.0,0.00032399,2]
[391785360,1760809844500,-500.0,0.00032399,2]
[391785361,1760809844510,-150.0,0.00032399,2]
[391785362,1760809844518,-150.0,0.00032399,2]
[391785363,1760809844528,-500.0,0.00032399,2]
[391785364,1760809844540,-206.69073684,0.00032399,2]
[391785365,1760809844551,-150.0,0.00032399,2]
[391785366,1760809844560,-150.0,0.00032399,2]
[391785367,1760809844571,-150.0,0.00032399,2]
[391785368,1760809844581,-150.0,0.00032399,2]
[391785369,1760809844590,-1181.21,0.00032399,2]
[391785370,1760809844600,-195.98,0.000324,2]
[391785371,1760809844611,-191.81,0.000324,30]
[391785372,1760809844623,-151.0,0.000324,120]
[391785373,1760809844632,-394.0,0.000324,2]
[391785374,1760809844642,-1425.0,0.000324,2]
[391785375,1760809844652,-1605.0,0.000324,7]
[391785376,1760809844663,-1900.0,0.000324,11]
[391785377,1760809844674,-6369.81083029,0.00032406,2]
[391785378,1760809844685,-500.0,0.00032408,2]
[391785379,1760809844695,-500.0,0.00032408,2]
[391785380,1760809844704,-500.0,0.00032408,2]
[391785381,1760809844713,-500.0,0.00032408,2]
[391785382,1760809844723,-500.0,0.00032408,2]
[391785383,1760809844731,-1234.0,0.00032409,7]
[391785384,1760809844742,-1234.0,0.00032409,7]
[391785385,1760809844752,-1234.0,0.00032409,7]
[391785386,1760809844762,-1234.0,0.00032409,7]
[391785387,1760809844771,-1234.0,0.00032409,7]
[391785388,1760809844781,-1234.0,0.00032409,7]
[391785389,1760809844790,-151.0,0.00032409,7]
[391785390,1760809844800,-1234.0,0.00032409,7]
[391785391,1760809844810,-153.9542739,0.00032409,7]
[391785392,1760809844820,-1234.0,0.00032409,7]
[391785393,1760809844831,-1234.0,0.00032409,7]
[391785394,1760809844840,-1234.0,0.00032409,7]
[391785395,1760809844849,-1234.0,0.00032409,7]
[391785396,1760809844861,-1234.0,0.00032409,7]
[391785397,1760809844871,-1234.0,0.00032409,7]
[391785398,1760809844881,-1234.0,0.00032409,7]
[391785399,1760809844890,-1234.0,0.00032409,7]
[391785400,1760809844900,-1234.0,0.00032409,7]
[391785401,1760809844910,-1234.0,0.00032409,7]
[391785402,1760809844921,-1234.0,0.00032409,7]
[391785403,1760809844931,-1234.0,0.00032409,7]
[391785404,1760809844940,-1234.0,0.00032409,7]
[391785405,1760809844949,-1234.0,0.00032409,7]
[391785406,1760809844958,-1234.0,0.00032409,7]
[391785407,1760809844967,-1234.0,0.00032409,7]
[391785408,1760809844977,-1234.0,0.00032409,7]
[391785409,1760809844986,-1234.0,0.00032409,7]
[391785410,1760809844995,-151.0,0.00032411,7]
[391785411,1760809845005,-151.0,0.00032411,7]
[391785412,1760809845014,-151.0,0.00032411,7]
[391785413,1760809845024,-151.0,0.00032411,7]
[391785414,1760809845034,-151.0,0.00032411,7]
[391785415,1760809845044,-151.0,0.00032411,7]
[391785416,1760809845054,-151.0,0.00032411,7]
[391785417,1760809845064,-151.0,0.00032411,7]
[391785418,1760809845076,-151.0,0.00032411,7]
[391785419,1760809845086,-151.0,0.00032411,7]
[391785420,1760809845096,-151.0,0.00032411,7]
[391785421,1760809845105,-151.0,0.00032411,7]
[391785422,1760809845116,-151.0,0.00032411,7]
[391785423,1760809845126,-151.0,0.00032411,7]
[391785424,1760809845136,-151.0,0.00032411,7]
[391785425,1760809845145,-151.0,0.00032411,7]
[391785426,1760809845155,-151.0,0.00032411,7]
[391785427,1760809845165,-151.0,0.00032411,7]
[391785428,1760809845177,-151.0,0.00032411,7]
[391785429,1760809845186,-151.0,0.00032411,7]
[391785430,1760809845195,-151.0,0.00032411,7]
[391785431,1760809845204,-151.0,0.00032411,7]
[391785432,1760809845214,-151.0,0.00032411,7]
[391785433,1760809845223,-151.0,0.00032411,7]
[391785434,1760809845232,-151.0,0.00032411,7]
[391785435,1760809845241,-151.0,0.00032411,7]
[391785436,1760809845250,-151.0,0.00032411,7]
[391785437,1760809845260,-162.97766137,0.00032421,15]
[391785438,1760809845269,-500.0,0.00032423,2]
[391785439,1760809845279,-500.0,0.00032423,2]
[391785440,1760809845289,-1234.0,0.00032423,7]
[391785441,1760809845299,-1234.0,0.00032423,7]
[391785442,1760809845309,-1234.0,0.00032423,7]
[391785443,1760809845320,-1234.0,0.00032423,7]
[391785444,1760809845331,-1234.0,0.00032423,7]
[391785445,1760809845340,-1234.0,0.00032423,7]
[391785446,1760809845350,-1234.0,0.00032423,7]
[391785447,1760809845359,-1234.0,0.00032423,7]
[391785448,1760809845369,-1234.0,0.00032423,7]
[391785449,1760809845378,-1234.0,0.00032423,7]
[391785450,1760809845388,-1234.0,0.00032423,7]
[391785451,1760809845397,-1234.0,0.00032423,7]
[391785452,1760809845407,-1234.0,0.00032423,7]
[391785453,1760809845418,-1234.0,0.00032423,7]
[391785454,1760809845428,-1086.76318194,0.00032423,7]
[391785455,1760809845437,-246.90036264,0.00032424,2]
[391785456,1760809845448,-1425.0,0.0003243,2]
[391785457,1760809845458,-6369.81083029,0.00032436,2]
[391785458,1760809845467,-150.0,0.00032454,2]
[391785459,1760809845477,-150.0,0.00032454,2]
[391785460,1760809845487,-231.3807159,0.00032454,2]
[391785461,1760809845496,-150.0,0.00032454,2]
[391785462,1760809845506,-150.0,0.00032454,2]
[391785463,1760809845516,-500.0,0.00032454,2]
[391785464,1760809845526,-500.0,0.00032454,2]
[391785465,1760809845537,-150.0,0.00032454,2]
[391785466,1760809845552,-150.0,0.00032454,2]
[391785467,1760809845563,-500.0,0.00032454,2]
[391785468,1760809845572,-150.0,0.00032454,2]
[391785469,1760809845583,-1000.0,0.00032459,2]
[391785470,1760809845594,-283.33276204,0.00032461,2]
[391785471,1760809845604,-999.0,0.00032464,120]
[391785472,1760809845613,-1013.99956734,0.00032465,2]
[391785473,1760809845624,-6369.81083029,0.00032465,2]
[391785474,1760809845634,-162.97766137,0.00032465,15]
[391785475,1760809845643,-364.54118929,0.00032465,2]
[391785476,1760809845653,-221.21041926,0.00032465,2]
[391785477,1760809845664,-246.90036264,0.00032465,2]
[391785478,1760809845675,-529.48432359,0.00032465,2]
[391785479,1760809845685,-472.98839466,0.00032465,6]
[391785480,1760809845696,-500.0,0.00032465,2]
[391785481,1760809845707,-500.0,0.00032465,2]
[391785482,1760809845718,-500.0,0.00032465,2]
[391785483,1760809845727,-500.0,0.00032465,2]
[391785484,1760809845736,-500.0,0.00032465,2]
[391785485,1760809845748,-500.0,0.00032465,2]
[391785486,1760809845758,-500.0,0.00032465,2]
[391785487,1760809845772,-500.0,0.00032465,2]
[391785488,1760809845782,-500.0,0.00032465,2]
[391785489,1760809845791,-500.0,0.00032465,2]
[391785490,1760809845801,-500.0,0.00032465,2]
[391785491,1760809845811,-500.0,0.00032465,2]
[391785492,1760809845822,-500.0,0.00032465,2]
[391785493,1760809845832,-500.0,0.00032465,2]
[391785494,1760809845842,-500.0,0.00032465,2]
[391785495,1760809845851,-500.0,0.00032465,2]
[391785496,1760809845862,-320.56156424,0.00032465,2]
[391785497,1760809845873,-500.0,0.00032465,2]
[391785498,1760809845883,-500.0,0.00032465,2]
[391785499,1760809845893,-500.0,0.00032465,2]
[391785500,1760809845902,-500.0,0.00032465,2]
[391785501,1760809845912,-500.0,0.00032465,2]
[391785502,1760809845922,-500.0,0.00032465,2]
[391785503,1760809845931,-500.0,0.00032465,2]
[391785504,1760809845941,-500.0,0.00032465,2]
[391785505,1760809845950,-2000.0,0.00032467,3]
[391785506,1760809845960,-2000.0,0.00032469,3]
[391785507,1760809845970,-6916.11,0.00032471,2]
[391785508,1760809845980,-500.0,0.00032471,2]
[391785509,1760809845991,-500.0,0.00032472,2]
[391785510,1760809846001,-500.0,0.00032472,2]
[391785511,1760809846011,-446.56,0.00032472,2]
[391785512,1760809846021,-500.0,0.00032472,2]
[391785513,1760809846030,-500.0,0.00032472,2]
[391785514,1760809846040,-500.0,0.00032472,2]
[391785515,1760809846050,-500.0,0.00032472,2]
[391785516,1760809846059,-408.15442011,0.00032472,2]
[391785517,1760809846069,-500.0,0.00032472,2]
[391785518,1760809846078,-500.0,0.00032473,2]
[391785519,1760809846088,-500.0,0.00032473,2]
[391785520,1760809846097,-500.0,0.00032473,2]
[391785521,1760809846106,-500.0,0.00032473,2]
[391785522,1760809846122,-569.81962301,0.00032473,2]
[391785523,1760809846131,-500.0,0.00032473,2]
[391785524,1760809846141,-500.0,0.00032473,2]
[391785525,1760809846150,-3752.01,0.00032473,2]
[391785527,1760809846160,-540.0,0.00032492,2]
[391785528,1760809846169,-627.1,0.00032499,2]
[391785529,1760809846178,-500.0,0.00032499,2]
[391785530,1760809846188,-500.0,0.00032499,2]
[391785531,1760809846198,-206.0,0.000325,120]
[391785532,1760809846208,-5800.0,0.000325,2]
[391785533,1760809846217,-2500.0,0.000325,7]
[391785534,1760809846227,-238.55002932,0.000325,2]
[391785535,1760809846238,-723.52278525,0.000325,7]
[391785536,1760809846247,-2400.0,0.000325,11]
[391785537,1760809846256,-2000.0,0.00032502,3]
[391785538,1760809846266,-1557.57382274,0.00032508,2]
[391785539,1760809846276,-201.14944807,0.00032509,2]
[391785540,1760809846285,-200.0,0.00032509,2]
[391785541,1760809846295,-150.0,0.00032509,2]
[391785542,1760809846304,-383.99369175,0.00032509,2]
[391785543,1760809846313,-457.34975452,0.00032509,2]
[391785544,1760809846323,-150.0,0.00032509,2]
[391785545,1760809846333,-150.0,0.00032509,2]
[391785546,1760809846343,-275.0,0.00032509,2]
[391785547,1760809846353,-150.0,0.00032509,2]
[391785548,1760809846362,-1000.0,0.00032515,2]
[391785549,1760809846372,-500.0,0.00032519,2]
[391785550,1760809846382,-1411.09,0.00032519,2]
[391785551,1760809846391,-1663.6,0.00032519,2]
[391785552,1760809846400,-500.0,0.00032519,2]
[391785553,1760809846409,-322.02,0.00032519,2]
[391785554,1760809846418,-500.0,0.00032519,2]
[391785555,1760809846429,-500.0,0.00032519,2]
[391785556,1760809846438,-242.66,0.0003252,2]
[391785557,1760809846449,-501.38371264,0.00032521,5]
[391785558,1760809846459,-1500.39049434,0.00032521,5]
[391785559,1760809846469,-398.0,0.00032523,120]
[391785560,1760809846479,-151.0,0.00032524,30]
[391785561,1760809846489,-151.0,0.00032524,30]
[391785562,1760809846498,-151.0,0.00032524,30]
[391785563,1760809846509,-151.0,0.00032524,30]
[391785564,1760809846517,-188.257185,0.00032541,30]
[391785565,1760809846527,-188.257185,0.00032541,30]
[391785566,1760809846538,-188.257185,0.00032541,30]
[391785567,1760809846549,-188.257185,0.00032541,30]
[391785568,1760809846560,-151.0,0.00032541,30]